[Event "Ceske Budejovice IM 2022"]
[Site "Ceske Budejovice"]
[Date "2022.07.07"]
[Round "7.5"]
[White "Bochnicka, Vladimir"]
[Black "Dev, Shah"]
[Result "1-0"]
[ECO "A33"]
[WhiteElo "2295"]
[BlackElo "2292"]
[Annotator "RC"]
[PlyCount "73"]
[EventDate "2022.07.01"]
[EventType "tourn"]
[EventCountry "CZE"]
[SourceTitle "playchess.com"]
[Source "ChessBase"]
[SourceQuality "1"]
[TimeControl "40/5400+30:1800+30"]

1. c4 {[%emt 0:00:04]} c5 {[%emt 0:00:46]} 2. Nf3 {[%emt 0:00:10]} Nf6 {[%emt 0:00:10]} 3. Nc3 {[%emt 0:00:07]} Nc6 {[%emt 0:00:05]} 4. d4 {[%emt 0:00:15]} cxd4 {[%emt 0:00:07]} 5. Nxd4 {[%emt 0:00:06]} e6 {[%emt 0:00:05]} 6. a3 {[%emt 0:00:14]} Be7 {[%emt 0:00:06]} 7. e4 {[%emt 0:01:04]} Qa5 {[%emt 0:04:33]} 8. Nb3 {[%emt 0:02:18]} Qc7 {[%emt 0:02:47]} 9. Be2 {[%emt 0:02:47]} b6 {[%emt 0:10:29]} 10. O-O {[%emt 0:03:42]} O-O {[%emt 0:03:01]} 11. Be3 {[%emt 0:09:53]} Bb7 {[%emt 0:05:35]} 12. Rc1 {[%emt 0:01:31]} d6 {[%emt 0:07:25]} 13. f4 {[%emt 0:05:48]} Rad8 {[%emt 0:01:42]} 14. Bd3 {[%emt 0:06:15]} Nd7 {[%emt 0:20:29]} 15. Bb1 {[%emt 0:11:37]} Qb8 {[%emt 0:16:10]} 16. Qh5 {[%emt 0:08:09]} g6 {[%emt 0:01:53]} 17. Qh3 {[%emt 0:08:20]} Bf6 {[%emt 0:08:17]} 18. g4 {[%emt 0:11:28]} Bg7 {[%emt 0:10:34]} 19. f5 {[%emt 0:13:08]} Rfe8 {[%emt 0:01:17]} 20. Rce1 {[%emt 0:07:09]} Nce5 {[%emt 0:00:36]} 21. g5 {[%emt 0:03:09]} exf5 {[%emt 0:00:44]} 22. exf5 {[%emt 0:00:05]} Qa8 {[%emt 0:01:39]} 23. Nd2 {[%emt 0:00:43]} Nc5 {[%emt 0:00:35]} 24. Bd4 {[%emt 0:01:07]} Ned3 {[%emt 0:02:53]} 25. Bxg7 {[%emt 0:00:47]} Rxe1 {[%emt 0:00:17]} 26. Bf6 {[%emt 0:00:54]} Rxf1+ {[%emt 0:00:43]} 27. Nxf1 {[%emt 0:00:12]} Nf4 {[%emt 0:00:01]} 28. Qh6 {[%emt 0:00:53]} Nce6 {[%emt 0:00:40]} 29. fxe6 {[%emt 0:00:16]} Nxe6 {[%emt 0:00:03]} 30. Ne3 {[%emt 0:00:40]} Qc8 {[%emt 0:00:23]} 31. Ncd5 {[%emt 0:01:04]} Bxd5 {[%emt 0:01:09]} 32. Nxd5 {[%emt 0:00:04]} Qc5+ {[%emt 0:00:25]} 33. Kh1 {[%emt 0:00:06]} Rd7 {[%emt 0:00:44]} 34. Bc3 {[%emt 0:01:09]} f5 {[%emt 0:00:12]} 35. Nf6+ {[%emt 0:00:20]} Kf7 {[%emt 0:00:07]} 36. Qxh7+ {[%emt 0:00:19]} Ng7 {[%emt 0:00:12]} 37. Qg8+ {[%emt 0:00:14]} 1-0

[Event "Ceske Budejovice IM 2022"]
[Site "Ceske Budejovice"]
[Date "2022.07.08"]
[Round "8.1"]
[White "Gretarsson, Helgi Ass"]
[Black "Dev, Shah"]
[Result "1/2-1/2"]
[ECO "C54"]
[WhiteElo "2472"]
[BlackElo "2292"]
[Annotator "RC"]
[PlyCount "98"]
[EventDate "2022.07.01"]
[EventType "tourn"]
[EventCountry "CZE"]
[SourceTitle "playchess.com"]
[Source "ChessBase"]
[SourceQuality "1"]
[TimeControl "40/5400+30:1800+30"]

1. e4 {[%emt 0:00:03]} e5 {[%emt 0:00:43]} 2. Nf3 {[%emt 0:00:07]} Nc6 {[%emt 0:00:06]} 3. Bc4 {[%emt 0:00:04]} Bc5 {[%emt 0:00:06]} 4. c3 {[%emt 0:00:05]} Nf6 {[%emt 0:00:08]} 5. d3 {[%emt 0:00:04]} d6 {[%emt 0:00:06]} 6. Bb3 {[%emt 0:00:19]} h6 {[%emt 0:01:27]} 7. Nbd2 {[%emt 0:00:12]} a5 {[%emt 0:02:07]} 8. h3 {[%emt 0:04:59]} Ba7 {[%emt 0:11:31]} 9. O-O {[%emt 0:10:49]} g5 {[%emt 0:03:52]} 10. Ba4 {[%emt 0:05:23]} Bd7 {[%emt 0:06:53]} 11. Nc4 {[%emt 0:02:26]} Qe7 {[%emt 0:04:18]} 12. Be3 {[%emt 0:19:36]} Bxe3 {[%emt 0:10:26]} 13. Nxe3 {[%emt 0:01:06]} O-O-O {[%emt 0:00:48]} 14. Nd2 {[%emt 0:04:49]} Nb8 {[%emt 0:03:00]} 15. Re1 {[%emt 0:05:52]} Rdg8 {[%emt 0:01:48]} 16. Ndf1 {[%emt 0:06:16]} g4 {[%emt 0:13:27]} 17. h4 {[%emt 0:00:33]} Nh5 {[%emt 0:09:42]} 18. g3 {[%emt 0:00:33]} Rg6 {[%emt 0:00:28]} 19. a3 {[%emt 0:16:06]} Ng7 {[%emt 0:03:50]} 20. Bc2 {[%emt 0:02:11]} h5 {[%emt 0:03:40]} 21. d4 {[%emt 0:00:05]} Rf8 {[%emt 0:01:58]} 22. b4 {[%emt 0:03:23]} f5 {[%emt 0:03:22]} 23. exf5 {[%emt 0:02:07]} Nxf5 {[%emt 0:00:14]} 24. Nd5 {[%emt 0:07:30]} Qf7 {[%emt 0:01:28]} 25. Bxf5 {[%emt 0:00:04]} Bxf5 {[%emt 0:00:13]} 26. dxe5 {[%emt 0:00:18]} Re6 {[%emt 0:00:58]} 27. Ra2 {[%emt 0:03:15]} Nc6 {[%emt 0:01:27]} 28. Nf4 {[%emt 0:03:17]} Nxe5 {[%emt 0:02:49]} 29. Nxe6 {[%emt 0:00:56]} Bxe6 {[%emt 0:05:22]} 30. Rxe5 {[%emt 0:00:05]} Bxa2 {[%emt 0:00:16]} 31. Re2 {[%emt 0:00:01]} Bd5 {[%emt 0:02:01]} 32. Rd2 {[%emt 0:00:31]} Bc6 {[%emt 0:01:19]} 33. Ne3 {[%emt 0:00:44]} Qe6 {[%emt 0:04:54]} 34. c4 {[%emt 0:01:12]} Qe4 {[%emt 0:01:20]} 35. Kh2 {[%emt 0:01:19]} axb4 {[%emt 0:00:48]} 36. axb4 b6 37. Qc1 {[%emt 0:01:57]} Kb8 {[%emt 0:01:23]} 38. Ra2 {[%emt 0:00:39]} Bb7 {[%emt 0:00:34]} 39. Qa1 {[%emt 0:00:30]} Qf3 {[%emt 0:00:37]} 40. Rd2 {[%emt 0:00:30]} Qe4 {[%emt 0:00:28]} 41. b5 {[%emt 0:13:45]} Qh7 {[%emt 0:15:49]} 42. Ra2 {[%emt 0:07:33]} Qd3 {[%emt 0:01:54]} 43. Qc1 {[%emt 0:00:49]} Qe4 {[%emt 0:02:47]} 44. Qa1 {[%emt 0:02:03]} d5 {[%emt 0:02:37]} 45. Qg7 {[%emt 0:03:26]} Re8 {[%emt 0:03:54]} 46. cxd5 {[%emt 0:02:53]} Bxd5 {[%emt 0:00:11]} 47. Nxd5 {[%emt 0:00:07]} Qxd5 {[%emt 0:00:01]} 48. Rc2 {[%emt 0:00:01]} Rc8 {[%emt 0:01:01]} 49. Qb2 {[%emt 0:01:30]} Re8 {[%emt 0:02:38]} 1/2-1/2

[Event "Ceske Budejovice IM 2022"]
[Site "Ceske Budejovice"]
[Date "2022.07.08"]
[Round "8.2"]
[White "Nagy, Ladislav"]
[Black "Bochnicka, Vladimir"]
[Result "0-1"]
[ECO "B53"]
[WhiteElo "2209"]
[BlackElo "2295"]
[Annotator "RC"]
[PlyCount "56"]
[EventDate "2022.07.01"]
[EventType "tourn"]
[EventCountry "CZE"]
[SourceTitle "playchess.com"]
[Source "ChessBase"]
[SourceQuality "1"]
[TimeControl "40/5400+30:1800+30"]

1. e4 {[%emt 0:00:03]} c5 {[%emt 0:00:06]} 2. Nf3 {[%emt 0:00:11]} d6 {[%emt 0:00:06]} 3. d4 {[%emt 0:00:18]} cxd4 {[%emt 0:00:05]} 4. Qxd4 {[%emt 0:00:06]} Nc6 {[%emt 0:00:07]} 5. Bb5 {[%emt 0:00:48]} Bd7 {[%emt 0:00:10]} 6. Bxc6 {[%emt 0:00:43]} Bxc6 {[%emt 0:00:12]} 7. Nc3 {[%emt 0:00:39]} h6 {[%emt 0:00:23]} 8. Bd2 {[%emt 0:18:00]} e5 {[%emt 0:02:37]} 9. Qd3 {[%emt 0:04:43]} Nf6 {[%emt 0:00:33]} 10. O-O-O {[%emt 0:08:38]} Be7 {[%emt 0:02:19]} 11. Qe2 {[%emt 0:05:54]} Rc8 {[%emt 0:15:32]} 12. Ne1 {[%emt 0:20:59]} O-O {[%emt 0:09:10]} 13. f3 {[%emt 0:03:59]} b5 {[%emt 0:22:30]} 14. Nxb5 {[%emt 0:03:09]} Qb6 {[%emt 0:00:47]} 15. Nc3 {[%emt 0:01:44]} d5 {[%emt 0:01:53]} 16. exd5 {[%emt 0:02:09]} Nxd5 {[%emt 0:00:14]} 17. Nxd5 {[%emt 0:07:59]} Bxd5 {[%emt 0:00:09]} 18. Kb1 {[%emt 0:01:14]} Bc4 {[%emt 0:23:25]} 19. Nd3 {[%emt 0:00:04]} Bf6 {[%emt 0:01:28]} 20. Qe4 {[%emt 0:08:54]} Rfd8 {[%emt 0:04:24]} 21. Bc1 {[%emt 0:00:51]} Rd4 {[%emt 0:03:43]} 22. Qe3 {[%emt 0:03:35]} e4 {[%emt 0:02:55]} 23. fxe4 {[%emt 0:01:29]} Bxa2+ {[%emt 0:02:10]} 24. Kxa2 {[%emt 0:00:02]} Ra4+ {[%emt 0:00:07]} 25. Kb1 {[%emt 0:00:05]} Qa5 {[%emt 0:00:07]} 26. c3 {[%emt 0:01:28]} Rxc3 {[%emt 0:00:30]} 27. bxc3 {[%emt 0:01:08]} Ra1+ {[%emt 0:00:06]} 28. Kb2 {[%emt 0:00:10]} Qa2# {[%emt 0:00:06]} 0-1

[Event "Ceske Budejovice IM 2022"]
[Site "Ceske Budejovice"]
[Date "2022.07.08"]
[Round "8.3"]
[White "Mirzoev, Azer"]
[Black "Svanda, Ondrej"]
[Result "1/2-1/2"]
[ECO "E11"]
[WhiteElo "2424"]
[BlackElo "2363"]
[Annotator "RC"]
[PlyCount "116"]
[EventDate "2022.07.01"]
[EventType "tourn"]
[EventCountry "CZE"]
[SourceTitle "playchess.com"]
[Source "ChessBase"]
[SourceQuality "1"]
[TimeControl "40/5400+30:1800+30"]

1. d4 {[%emt 0:00:07]} Nf6 {[%emt 0:00:01]} 2. Nf3 {[%emt 0:00:18]} e6 {[%emt 0:00:04]} 3. c4 {[%emt 0:00:07]} Bb4+ {[%emt 0:00:06]} 4. Nbd2 {[%emt 0:00:09]} O-O {[%emt 0:03:18]} 5. a3 {[%emt 0:00:05]} Be7 {[%emt 0:00:02]} 6. e3 {[%emt 0:00:37]} d5 {[%emt 0:01:06]} 7. b4 {[%emt 0:00:19]} b6 {[%emt 0:01:45]} 8. cxd5 {[%emt 0:07:59]} exd5 {[%emt 0:01:14]} 9. Bb2 {[%emt 0:01:12]} Nbd7 {[%emt 0:01:59]} 10. Bd3 {[%emt 0:00:20]} Bb7 {[%emt 0:00:52]} 11. O-O {[%emt 0:00:40]} Re8 {[%emt 0:00:13]} 12. b5 {[%emt 0:01:40]} Bd6 {[%emt 0:02:49]} 13. a4 {[%emt 0:00:37]} a6 {[%emt 0:00:21]} 14. Qb3 {[%emt 0:00:29]} Qe7 {[%emt 0:02:55]} 15. Rfc1 {[%emt 0:02:23]} a5 {[%emt 0:06:15]} 16. Ba3 {[%emt 0:04:23]} Rac8 {[%emt 0:00:29]} 17. Nf1 {[%emt 0:00:50]} Ne4 {[%emt 0:07:17]} 18. Rc2 {[%emt 0:02:01]} f5 {[%emt 0:05:51]} 19. Ng3 {[%emt 0:04:35]} g6 {[%emt 0:00:34]} 20. Bf1 {[%emt 0:00:31]} Kg7 {[%emt 0:01:12]} 21. Ne2 {[%emt 0:07:16]} g5 {[%emt 0:05:05]} 22. g3 {[%emt 0:11:32]} Rf8 {[%emt 0:10:56]} 23. Bg2 {[%emt 0:03:04]} h6 {[%emt 0:03:41]} 24. Nc1 {[%emt 0:06:28]} h5 {[%emt 0:11:32]} 25. Nd3 {[%emt 0:08:21]} h4 {[%emt 0:00:45]} 26. gxh4 {[%emt 0:11:50]} g4 {[%emt 0:01:07]} 27. Ng5 {[%emt 0:01:09]} Rh8 {[%emt 0:06:11]} 28. Bxd6 {[%emt 0:00:13]} Qxd6 {[%emt 0:01:32]} 29. Qa3 {[%emt 0:02:59]} Kf6 {[%emt 0:06:53]} 30. Nf4 {[%emt 0:06:05]} Nxg5 {[%emt 0:16:50]} 31. hxg5+ {[%emt 0:00:08]} Kxg5 {[%emt 0:00:01]} 32. Qxd6 {[%emt 0:08:13]} cxd6 {[%emt 0:00:02]} 33. Rac1 {[%emt 0:00:07]} Nf6 {[%emt 0:00:01]} 34. Rc7 {[%emt 0:00:39]} Kh6 {[%emt 0:01:57]} 35. Rxc8 {[%emt 0:04:28]} Rxc8 {[%emt 0:00:01]} 36. Rxc8 {[%emt 0:00:06]} Bxc8 {[%emt 0:00:01]} 37. Bxd5 {[%emt 0:00:51]} Kg7 {[%emt 0:00:20]} 38. Kf1 {[%emt 0:01:35]} Bd7 {[%emt 0:00:16]} 39. Ke1 {[%emt 0:00:49]} Kh6 {[%emt 0:00:44]} 40. Kd2 {[%emt 0:01:06]} Nh5 {[%emt 0:00:53]} 41. Ne2 {[%emt 0:31:05]} Nf6 {[%emt 0:30:05]} 42. Bg2 {[%emt 0:00:53]} Be6 {[%emt 0:00:39]} 43. Kc3 {[%emt 0:01:35]} Kg5 {[%emt 0:02:00]} 44. Nf4 {[%emt 0:00:13]} Bf7 {[%emt 0:00:02]} 45. h3 {[%emt 0:00:40]} Nh5 {[%emt 0:00:00]} 46. Nd3 {[%emt 0:00:00]} gxh3 {[%emt 0:00:00]} 47. Bxh3 {[%emt 0:00:00]} Bd5 {[%emt 0:00:00]} 48. Ne1 {[%emt 0:00:00]} Nf6 {[%emt 0:00:00]} 49. Bg2 {[%emt 0:00:00]} Ne4+ {[%emt 0:00:00]} 50. Bxe4 {[%emt 0:00:00]} fxe4 {[%emt 0:00:00]} 51. Ng2 {[%emt 0:00:00]} Kf5 {[%emt 0:00:00]} 52. Nf4 {[%emt 0:00:00]} Bf7 {[%emt 0:00:00]} 53. d5 {[%emt 0:00:12]} Ke5 {[%emt 0:00:00]} 54. Kc4 {[%emt 0:00:04]} Bg8 {[%emt 0:00:00]} 55. Ng6+ {[%emt 0:01:02]} Kf6 {[%emt 0:00:00]} 56. Nh4 {[%emt 0:00:29]} Ke5 {[%emt 0:00:00]} 57. Ng6+ {[%emt 0:01:51]} Kf6 {[%emt 0:00:00]} 58. Nf4 {[%emt 0:00:28]} Ke5 {[%emt 0:00:00]} 1/2-1/2

[Event "Ceske Budejovice IM 2022"]
[Site "Ceske Budejovice"]
[Date "2022.07.08"]
[Round "8.4"]
[White "Lajbl, Jan"]
[Black "Plischki, Sebastian"]
[Result "0-1"]
[ECO "B43"]
[WhiteElo "2212"]
[BlackElo "2384"]
[Annotator "RC"]
[PlyCount "130"]
[EventDate "2022.07.01"]
[EventType "tourn"]
[EventCountry "CZE"]
[SourceTitle "playchess.com"]
[Source "ChessBase"]
[SourceQuality "1"]
[TimeControl "40/5400+30:1800+30"]

1. e4 {[%emt 0:01:58]} c5 {[%emt 0:00:11]} 2. Nf3 {[%emt 0:00:04]} e6 {[%emt 0:00:08]} 3. Nc3 {[%emt 0:00:17]} a6 {[%emt 0:00:39]} 4. d4 {[%emt 0:00:14]} cxd4 {[%emt 0:00:06]} 5. Nxd4 {[%emt 0:00:02]} b5 {[%emt 0:00:29]} 6. g3 {[%emt 0:01:51]} Bb7 {[%emt 0:00:10]} 7. Bg2 {[%emt 0:00:08]} Nf6 {[%emt 0:00:35]} 8. a3 {[%emt 0:01:05]} d6 {[%emt 0:01:44]} 9. O-O {[%emt 0:01:03]} Nbd7 {[%emt 0:01:21]} 10. Re1 {[%emt 0:02:03]} Qc7 {[%emt 0:01:14]} 11. f4 {[%emt 0:09:55]} Nb6 {[%emt 0:10:54]} 12. Qd3 {[%emt 0:08:44]} Be7 {[%emt 0:04:55]} 13. b3 {[%emt 0:05:39]} O-O {[%emt 0:02:20]} 14. Bb2 {[%emt 0:01:04]} Rfd8 {[%emt 0:05:07]} 15. h3 {[%emt 0:06:58]} Rac8 {[%emt 0:04:23]} 16. Rac1 {[%emt 0:02:15]} Bf8 {[%emt 0:05:06]} 17. Nde2 {[%emt 0:07:22]} e5 {[%emt 0:03:23]} 18. Red1 {[%emt 0:03:24]} Re8 {[%emt 0:03:12]} 19. Kh2 {[%emt 0:07:57]} Rcd8 {[%emt 0:05:41]} 20. Qe3 {[%emt 0:09:04]} Bc6 {[%emt 0:04:50]} 21. Qf2 {[%emt 0:02:44]} Qb7 {[%emt 0:05:28]} 22. Rd2 {[%emt 0:02:49]} exf4 {[%emt 0:06:15]} 23. Nxf4 {[%emt 0:01:17]} Nxe4 {[%emt 0:00:56]} 24. Nxe4 {[%emt 0:02:08]} Bxe4 {[%emt 0:00:05]} 25. Nh5 {[%emt 0:00:17]} Nd7 {[%emt 0:10:56]} 26. Rf1 {[%emt 0:04:41]} f6 {[%emt 0:03:22]} 27. Bxe4 {[%emt 0:01:31]} Qxe4 {[%emt 0:01:20]} 28. Nf4 {[%emt 0:02:15]} Qb7 {[%emt 0:05:12]} 29. Nd5 {[%emt 0:01:09]} Nc5 {[%emt 0:01:18]} 30. Qf3 {[%emt 0:01:26]} Qf7 {[%emt 0:01:23]} 31. Qg4 {[%emt 0:02:10]} Qg6 {[%emt 0:01:39]} 32. Qf3 {[%emt 0:02:53]} Rc8 {[%emt 0:04:02]} 33. Nb6 {[%emt 0:02:25]} Ne4 {[%emt 0:01:26]} 34. Rg2 {[%emt 0:02:26]} Rc5 {[%emt 0:00:56]} 35. Bd4 {[%emt 0:01:24]} Ng5 {[%emt 0:02:31]} 36. Qd1 {[%emt 0:01:41]} Rf5 {[%emt 0:00:32]} 37. Rf4 {[%emt 0:01:12]} Ne4 {[%emt 0:01:11]} 38. Qf3 {[%emt 0:00:58]} Rxf4 {[%emt 0:00:26]} 39. Qxf4 {[%emt 0:00:44]} Qg5 {[%emt 0:01:47]} 40. Qf3 {[%emt 0:01:07]} Qg6 {[%emt 0:02:25]} 41. Nd5 {[%emt 0:32:05]} Ng5 {[%emt 0:03:16]} 42. Qd1 {[%emt 0:00:00]} Qf5 {[%emt 0:04:17]} 43. Nf4 {[%emt 0:00:00]} d5 {[%emt 0:00:24]} 44. Bf2 {[%emt 0:00:00]} Rd8 {[%emt 0:01:31]} 45. Bb6 {[%emt 0:00:00]} Rd7 {[%emt 0:00:36]} 46. Rd2 {[%emt 0:00:00]} Bxa3 {[%emt 0:03:52]} 47. Rxd5 {[%emt 0:00:00]} Rxd5 {[%emt 0:00:05]} 48. Qxd5+ {[%emt 0:00:00]} Qxd5 {[%emt 0:00:04]} 49. Nxd5 {[%emt 0:00:00]} Bd6 {[%emt 0:00:12]} 50. Bc7 {[%emt 0:00:00]} Ne4 {[%emt 0:00:27]} 51. b4 {[%emt 0:00:00]} Kf7 {[%emt 0:02:47]} 52. Bxd6 {[%emt 0:00:00]} Ke6 {[%emt 0:02:29]} 53. Nxf6 {[%emt 0:00:00]} Nxf6 {[%emt 0:00:11]} 54. Bf8 {[%emt 0:00:00]} g6 {[%emt 0:00:15]} 55. Kg2 {[%emt 0:00:00]} Kd5 {[%emt 0:00:16]} 56. Bg7 {[%emt 0:00:00]} Ne8 {[%emt 0:01:07]} 57. Bh8 {[%emt 0:00:00]} Kc4 {[%emt 0:00:19]} 58. c3 {[%emt 0:00:00]} Nc7 {[%emt 0:00:08]} 59. Kf3 {[%emt 0:00:00]} Nd5 {[%emt 0:00:04]} 60. Kg4 {[%emt 0:00:00]} Nxc3 {[%emt 0:00:08]} 61. Kg5 {[%emt 0:00:00]} Kxb4 {[%emt 0:00:31]} 62. Kh6 {[%emt 0:00:00]} a5 {[%emt 0:00:06]} 63. Kxh7 {[%emt 0:00:21]} a4 {[%emt 0:00:03]} 64. Bg7 {[%emt 0:00:08]} a3 {[%emt 0:00:57]} 65. Bf8+ {[%emt 0:00:05]} Ka4 {[%emt 0:00:04]} 0-1

[Event "Ceske Budejovice IM 2022"]
[Site "Ceske Budejovice"]
[Date "2022.07.08"]
[Round "8.5"]
[White "Finek, Vaclav"]
[Black "Civin, Tomas"]
[Result "1/2-1/2"]
[ECO "E66"]
[WhiteElo "2393"]
[BlackElo "2419"]
[Annotator "RC"]
[PlyCount "45"]
[EventDate "2022.07.01"]
[EventType "tourn"]
[EventCountry "CZE"]
[SourceTitle "playchess.com"]
[Source "ChessBase"]
[SourceQuality "1"]
[TimeControl "40/5400+30:1800+30"]

1. d4 {[%emt 0:00:01]} Nf6 {[%emt 0:00:12]} 2. Nf3 {[%emt 0:00:09]} g6 {[%emt 0:01:05]} 3. c4 {[%emt 0:00:05]} Bg7 {[%emt 0:00:07]} 4. g3 {[%emt 0:00:05]} O-O {[%emt 0:00:09]} 5. Bg2 {[%emt 0:00:03]} d6 {[%emt 0:00:09]} 6. O-O {[%emt 0:00:29]} c5 {[%emt 0:00:07]} 7. Nc3 {[%emt 0:00:26]} Nc6 {[%emt 0:00:08]} 8. d5 {[%emt 0:00:22]} Na5 {[%emt 0:00:07]} 9. Nd2 {[%emt 0:00:05]} e5 {[%emt 0:00:09]} 10. b3 {[%emt 0:00:59]} Ng4 {[%emt 0:03:44]} 11. h3 {[%emt 0:11:56]} Nh6 {[%emt 0:04:14]} 12. Bb2 {[%emt 0:02:52]} f5 {[%emt 0:00:11]} 13. Qc2 {[%emt 0:01:24]} b6 {[%emt 0:05:55]} 14. Rae1 {[%emt 0:04:52]} Nb7 {[%emt 0:05:56]} 15. e4 {[%emt 0:03:44]} f4 {[%emt 0:04:13]} 16. Ne2 {[%emt 0:18:06]} g5 {[%emt 0:09:00]} 17. Nc1 {[%emt 0:14:09]} g4 {[%emt 0:03:36]} 18. hxg4 {[%emt 0:00:08]} fxg3 {[%emt 0:00:36]} 19. fxg3 {[%emt 0:00:41]} Nxg4 {[%emt 0:00:15]} 20. Nd3 {[%emt 0:01:37]} Bh6 {[%emt 0:05:04]} 21. Rxf8+ {[%emt 0:02:07]} Qxf8 {[%emt 0:03:32]} 22. Nf1 {[%emt 0:00:42]} Nd8 {[%emt 0:03:06]} 23. Nf2 {[%emt 0:04:40]} 1/2-1/2

[Event "Ceske Budejovice IM 2022"]
[Site "Ceske Budejovice"]
[Date "2022.07.09"]
[Round "9.1"]
[White "Civin, Tomas"]
[Black "Gretarsson, Helgi Ass"]
[Result "1/2-1/2"]
[ECO "B06"]
[WhiteElo "2419"]
[BlackElo "2472"]
[Annotator "RC"]
[PlyCount "31"]
[EventDate "2022.07.01"]
[EventType "tourn"]
[EventCountry "CZE"]
[SourceTitle "playchess.com"]
[Source "ChessBase"]
[SourceQuality "1"]
[TimeControl "40/5400+30:1800+30"]

1. d4 {[%emt 0:00:10]} g6 {[%emt 0:00:26]} 2. e4 {[%emt 0:04:47]} Bg7 {[%emt 0:00:06]} 3. Nf3 {[%emt 0:01:32]} d6 {[%emt 0:00:09]} 4. h3 {[%emt 0:00:43]} Nf6 {[%emt 0:01:23]} 5. Bd3 {[%emt 0:00:08]} O-O {[%emt 0:00:15]} 6. O-O {[%emt 0:00:05]} Nc6 {[%emt 0:00:08]} 7. Re1 {[%emt 0:00:50]} e5 {[%emt 0:00:06]} 8. c3 {[%emt 0:00:06]} h6 {[%emt 0:02:43]} 9. Nbd2 {[%emt 0:03:13]} Nh5 {[%emt 0:01:06]} 10. dxe5 {[%emt 0:00:15]} Nxe5 {[%emt 0:01:23]} 11. Nxe5 {[%emt 0:00:20]} dxe5 {[%emt 0:00:02]} 12. Nc4 {[%emt 0:00:30]} Qe7 {[%emt 0:17:37]} 13. b4 {[%emt 0:07:07]} Rd8 {[%emt 0:05:56]} 14. Qc2 {[%emt 0:01:45]} Nf4 {[%emt 0:00:23]} 15. Bf1 {[%emt 0:00:41]} h5 {[%emt 0:20:47]} 16. a4 {[%emt 0:02:40]} 1/2-1/2

[Event "Ceske Budejovice IM 2022"]
[Site "Ceske Budejovice"]
[Date "2022.07.09"]
[Round "9.2"]
[White "Plischki, Sebastian"]
[Black "Finek, Vaclav"]
[Result "1/2-1/2"]
[ECO "A50"]
[WhiteElo "2384"]
[BlackElo "2393"]
[Annotator "RC"]
[PlyCount "51"]
[EventDate "2022.07.01"]
[EventType "tourn"]
[EventCountry "CZE"]
[SourceTitle "playchess.com"]
[Source "ChessBase"]
[SourceQuality "1"]
[TimeControl "40/5400+30:1800+30"]

1. d4 {[%emt 0:00:07]} Nf6 {[%emt 0:00:03]} 2. c4 {[%emt 0:00:10]} g6 {[%emt 0:00:03]} 3. h4 {[%emt 0:00:18]} h5 {[%emt 0:02:32]} 4. Nc3 {[%emt 0:00:43]} d5 {[%emt 0:08:15]} 5. Nf3 {[%emt 0:01:19]} Bg7 {[%emt 0:00:20]} 6. Bg5 {[%emt 0:01:04]} O-O {[%emt 0:03:47]} 7. Bxf6 {[%emt 0:06:22]} Bxf6 {[%emt 0:00:03]} 8. cxd5 {[%emt 0:04:35]} e6 {[%emt 0:07:32]} 9. dxe6 {[%emt 0:02:13]} Bxe6 {[%emt 0:00:35]} 10. e3 {[%emt 0:00:12]} c5 {[%emt 0:19:09]} 11. Ne4 {[%emt 0:07:14]} cxd4 {[%emt 0:07:00]} 12. Nxf6+ {[%emt 0:00:22]} Qxf6 {[%emt 0:00:04]} 13. Qxd4 {[%emt 0:00:41]} Qe7 {[%emt 0:00:04]} 14. Be2 {[%emt 0:08:47]} Nc6 {[%emt 0:00:20]} 15. Qf4 {[%emt 0:03:13]} Qb4+ {[%emt 0:04:37]} 16. Qxb4 {[%emt 0:01:24]} Nxb4 {[%emt 0:00:05]} 17. O-O {[%emt 0:01:14]} Bxa2 {[%emt 0:01:10]} 18. Rfc1 {[%emt 0:01:33]} Rac8 {[%emt 0:03:13]} 19. Nd4 {[%emt 0:00:44]} Bd5 {[%emt 0:13:18]} 20. Rc3 {[%emt 0:04:12]} a6 {[%emt 0:03:09]} 21. Rac1 {[%emt 0:02:15]} Rxc3 {[%emt 0:02:28]} 22. Rxc3 {[%emt 0:00:41]} Nc6 {[%emt 0:03:02]} 23. Nxc6 {[%emt 0:04:38]} Bxc6 {[%emt 0:00:05]} 24. Bxa6 {[%emt 0:01:02]} Bxg2 {[%emt 0:00:59]} 25. Kxg2 {[%emt 0:00:17]} bxa6 {[%emt 0:00:04]} 26. Rc6 {[%emt 0:00:15]} 1/2-1/2